[Event "Tata Steel India Women Rapid 2024"]
[Site "Kolkata"]
[Date "2024.11.13"]
[Round "3.5"]
[White "Goryachkina, Aleksandra"]
[Black "Dronavalli, Harika"]
[Result "1/2-1/2"]
[ECO "C06"]
[WhiteElo "2528"]
[BlackElo "2493"]
[Annotator "TA"]
[PlyCount "134"]
[EventDate "2024.11.06"]
[EventType "tourn"]
[EventCountry "IND"]
[SourceTitle "playchess.com"]
[Source "ChessBase"]
[SourceQuality "1"]
[TimeControl "1500+10"]

{[%evp 21,134,31,34,11,14,0,0,0,43,45,33,47,37,47,38,50,37,7,9,2,1,11,6,0,-10,-11,0,-3,0,0,0,-3,0,0,0,0,0,0,0,0,0,0,6,6,8,8,18,14,19,20,15,15,15,0,0,0,0,0,0,0,0,0,0,0,0,0,0,0,0,-8,-8,-8,-2,-4,-5,-6,-6,-20,-18,-33,-33,-33,-33,-48,-48,-48,-48,-48,-48,-48,-27,-27,-27,-27,-27,-27,-27,-27,-27,-78,-12,-78,-78,-78,-78,-85,-85,-85,-85,-85,0,-85,0,-85,0]} 1. e4 {[%emt 0:00:03]} e6 {[%emt 0:00:01]} 2. d4 {[%emt 0:00:04]} d5 {[%emt 0:00:02]} 3. Nd2 {[%emt 0:00:06]} Nf6 {[%emt 0:00:01]} 4. e5 {[%emt 0:00:46]} Nfd7 {[%emt 0:00:02]} 5. Bd3 {[%emt 0:00:10]} c5 {[%emt 0:00:02]} 6. c3 {[%emt 0:00:03]} Nc6 {[%emt 0:26:02]} 7. Ne2 {[%emt 0:00:09]} cxd4 {[%emt 0:00:00]} 8. cxd4 {[%emt 0:00:05]} f6 {[%emt 0:00:00]} 9. exf6 {[%emt 0:00:22]} Nxf6 {[%emt 0:00:00]} 10. Nf3 {[%emt 0:00:34]} Bd6 {[%emt 0:00:00]} 11. O-O {[%emt 0:00:22]} Qc7 {[%emt 0:00:50]} 12. Qc2 {[%emt 0:24:26]} O-O {[%emt 0:00:00]} 13. Bg5 {[%emt 0:00:10]} h6 {[%emt 0:00:00]} 14. Bh4 {[%emt 0:00:00] The position is equal.} e5 {[%emt 0:00:00]} 15. dxe5 {[%emt 0:00:00]} Nxe5 {[%emt 0:00:00]} 16. Nxe5 {[%emt 0:00:00]} Qxc2 {[%emt 0:00:00]} 17. Bxc2 {[%emt 0:00:00]} Bxe5 {[%emt 0:00:00]} 18. Rab1 {[%emt 0:00:00]} Bd7 {[%emt 0:00:00]} 19. Rfe1 {[%emt 0:00:00]} Rac8 {[%emt 0:00:00]} 20. Bg6 {[%emt 0:00:00]} Rc6 {[%emt 0:00:00]} 21. Bd3 {[%emt 0:00:00]} Ne4 {[%emt 0:00:00]} 22. Bxe4 {[%emt 0:00:00]} dxe4 {[%emt 0:00:00]} 23. Bg3 {[%emt 0:00:00]} Bf6 {[%emt 0:00:00]} 24. Nc3 {[%emt 0:00:00]} Bxc3 {[%emt 0:00:00]} 25. bxc3 {[%emt 0:00:00]} b6 {[%emt 0:00:00]} 26. Rbd1 {[%emt 0:00:00]} Bg4 {[%emt 0:00:00]} 27. Rd4 {[%emt 0:00:00]} Bf5 {[%emt 0:00:00]} 28. Ra4 {[%emt 0:00:00]} Rf7 {[%emt 0:00:00]} 29. Be5 {[%emt 0:00:00]} Rd7 {[%emt 0:00:00]} 30. h3 {[%emt 0:00:00]} h5 {[%emt 0:00:00]} 31. Bd4 {[%emt 0:00:00]} Kh7 {[%emt 0:00:00]} 32. Rb4 {[%emt 0:00:00]} Rd5 {[%emt 0:00:00] Inhibits Rb5.} 33. a4 {[%emt 0:00:00]} Rg6 {[%emt 0:00:00]} 34. Kh2 {[%emt 0:00:00]} Ra5 {[%emt 0:00:00]} 35. Rb5 {[%emt 0:00:00]} Rxb5 {[%emt 0:00:40]} 36. axb5 $11 {[%emt 0:00:00][%mdl 4096] Endgame. KRB-KRB} Rd6 {[%emt 0:00:57]} 37. g4 {[%emt 0:00:22]} hxg4 {[%emt 0:00:29]} 38. hxg4 {[%emt 0:00:01]} Bxg4 {[%emt 0:00:11]} 39. Rxe4 {[%emt 0:00:07]} Bf5 {[%emt 0:00:02]} 40. Re5 {[%emt 0:00:21]} Kg6 {[%emt 0:00:25]} 41. Kg3 {[%emt 0:00:10]} Rd7 {[%emt 0:00:16]} 42. Kf4 {[%emt 0:00:19]} Bd3 {[%emt 0:00:13]} 43. Ke3 {[%emt 0:00:32]} Bc4 {[%emt 0:00:01]} 44. f4 {[%emt 0:00:07]} Kf7 {[%emt 0:00:07]} 45. Rg5 {[%emt 0:00:53]} g6 {[%emt 0:00:19]} 46. f5 {[%emt 0:00:14]} gxf5 {[%emt 0:00:08]} 47. Rxf5+ {[%emt 0:00:02]} Ke6 {[%emt 0:01:01]} 48. Rf6+ {[%emt 0:00:16]} Ke7 {[%emt 0:00:08]} 49. Rh6 {[%emt 0:00:22]} Bxb5 {[%emt 0:00:15]} 50. Rh7+ {[%emt 0:00:02]} Ke6 {[%emt 0:00:03]} 51. Rxd7 {[%emt 0:00:02]} Kxd7 $15 {[%emt 0:00:01] KB-KB} 52. Kd2 {[%emt 0:00:03]} Bc4 {[%emt 0:00:02]} 53. Kc2 {[%emt 0:00:01]} Kc6 {[%emt 0:00:01]} 54. Kb2 {[%emt 0:00:02]} a5 {[%emt 0:00:01]} 55. Ka3 {[%emt 0:00:19]} b5 {[%emt 0:00:02]} 56. Bf6 {[%emt 0:00:06]} Kd5 {[%emt 0:00:06]} 57. Bd8 {[%emt 0:00:02]} a4 {[%emt 0:00:02]} 58. Be7 {[%emt 0:00:04]} Ke4 {[%emt 0:00:01]} 59. Kb2 {[%emt 0:00:02]} Kd3 {[%emt 0:00:00]} 60. Bd6 {[%emt 0:00:02] [#]} (60. Ka3 $1 $11) 60... Bb3 {[%emt 0:00:02]} (60... Be6 $1 $17) 61. Be7 {[%emt 0:00:02]} (61. c4 $1 $11 {remains equal.}) 61... Kc4 $17 {[%emt 0:00:01]} 62. Bf8 {[%emt 0:00:02] [#]} Bd1 $1 {[%emt 0:00:02]} 63. Be7 {[%emt 0:00:02]} Be2 {[%emt 0:00:01]} 64. Bf8 {[%emt 0:00:01]} Bd3 {[%emt 0:00:01]} 65. Be7 {[%emt 0:00:02]} Be2 {[%emt 0:00:01]} 66. Bf8 $1 {[%emt 0:00:02]} Bd3 {[%emt 0:00:01]} 67. Be7 $1 {[%emt 0:00:02]} Be2 {[%emt 0:00:00] Weighted Error Value: White=0.05 (flawless) /Black=0.04 (flawless) .  Mistake:       	White=2     	Black=2      Inaccurate:     	White=1     	Black=1      OK:         	White=14    	Black=27     Best:        	---       	Black=1      Strong:       	White=2     	Black=1} ({Better is} 67... Bf5 $17) 1/2-1/2

[Event "Tata Steel India Women Rapid 2024"]
[Site "Kolkata"]
[Date "2024.11.14"]
[Round "4.1"]
[White "Dronavalli, Harika"]
[Black "Divya Deshmukh"]
[Result "1-0"]
[ECO "A47"]
[WhiteElo "2493"]
[BlackElo "2493"]
[Annotator "TA"]
[PlyCount "103"]
[EventDate "2024.11.06"]
[EventType "tourn"]
[EventCountry "IND"]
[SourceTitle "playchess.com"]
[Source "ChessBase"]
[SourceQuality "1"]
[TimeControl "1500+10"]

{[%evp 11,103,3,12,0,7,7,13,-10,0,-2,0,-3,0,-11,-1,-39,18,0,63,51,58,46,103,0,10,9,8,-20,-26,-20,0,-68,-56,-68,-81,-282,-145,-342,-342,-410,-210,-207,-201,-165,-144,-136,-115,-109,-87,-87,-93,-87,-65,-60,-58,-74,-21,-28,-22,-114,-114,-303,-257,-303,-308,-303,-283,-264,-223,-230,-230,-333,552,-162,-123,-123,-97,-129,0,-111,-111,-105,-95,-94,-41,-83,0,-73,1997,1350,1782,1458,1394,1329]} 1. d4 {[%emt 0:00:03]} Nf6 {[%emt 0:00:03]} 2. Nf3 {[%emt 0:00:02]} e6 {[%emt 0:00:37]} 3. e3 {[%emt 0:00:02]} b6 {[%emt 0:00:14]} 4. Bd3 {[%emt 0:00:13]} Bb7 {[%emt 0:00:02]} 5. O-O {[%emt 0:00:45]} c5 {[%emt 0:00:05]} 6. b3 {[%emt 0:00:23]} Nc6 {[%emt 0:00:19]} 7. a3 {[%emt 0:00:23]} d5 {[%emt 0:00:26]} 8. Bb2 {[%emt 0:00:04]} Bd6 {[%emt 0:00:29]} 9. Ne5 {[%emt 0:01:30] The position is equal.} O-O {[%emt 0:00:57]} 10. Nd2 {[%emt 0:00:29]} Qc7 {[%emt 0:00:38]} 11. f4 {[%emt 0:00:13]} Ne7 {[%emt 0:00:03]} 12. Qe2 {[%emt 0:04:31]} Ne4 {[%emt 0:01:11]} 13. c4 {[%emt 0:06:08]} (13. dxc5 $5 Nxc5 14. b4 Nxd3 15. cxd3 $17) 13... f6 {[%emt 0:04:23]} (13... Nxd2 $15 14. Qxd2 cxd4) 14. cxd5 {[%emt 0:03:17]} (14. Rac1 $5) 14... exd5 {[%emt 0:01:25]} (14... Nxd2 $11 15. Qxd2 Nxd5) 15. Nxe4 $14 {[%emt 0:00:04]} dxe4 {[%emt 0:00:06]} 16. Bc4+ {[%emt 0:00:01]} Nd5 {[%emt 0:00:46] [#]} ({Black should try} 16... Bd5 $1 $14) 17. Rfd1 {[%emt 0:00:53] White is more active.} Rad8 {[%emt 0:00:26]} 18. dxc5 {[%emt 0:00:30]} Bxc5 {[%emt 0:00:20]} 19. Ng4 {[%emt 0:02:05]} (19. b4 $5 fxe5 20. Bxd5+ (20. bxc5 exf4 21. exf4 Qxc5+ 22. Bd4 Qe7 $11) 20... Rxd5 (20... Bxd5 21. Bxe5 Qe7 22. bxc5 $16) 21. Bxe5 Bxe3+ 22. Qxe3 $11) 19... b5 {[%emt 0:06:26]} (19... Qxf4 20. b4 f5 21. bxc5 Qxg4 22. Qxg4 fxg4 23. cxb6 axb6 24. Rd4) 20. Bxd5+ {[%emt 0:00:59]} Rxd5 {[%emt 0:00:01]} 21. b4 {[%emt 0:01:18]} (21. Rxd5 $11 Bxd5 22. Rc1) 21... Bb6 $1 $15 {[%emt 0:00:27] This pair of bishops is nice.} 22. Rxd5 {[%emt 0:01:20]} Bxd5 {[%emt 0:00:01]} 23. Rc1 {[%emt 0:01:52]} (23. Nf2 $17 {keeps fighting.}) 23... Qxf4 {[%emt 0:00:48]} ({Better is} 23... Bc4 $19 24. Qf2 h5 25. Nxf6+ gxf6) 24. Rf1 $2 {[%emt 0:00:01]} (24. Qxb5 $17 Bxe3+ (24... Be6 25. Qxb6 axb6 26. exf4 $14) 25. Nxe3 Qxe3+ 26. Kf1 Qf4+ 27. Kg1) 24... Qg5 $19 {[%emt 0:00:47] Hoping for ...Bc4.} 25. Qxb5 {[%emt 0:00:36]} Bxe3+ {[%emt 0:00:38]} (25... Rd8 $142 26. Qe2 Be6 (26... f5 $2 27. Bf6 $19) 27. Bxf6 gxf6 (27... Qxg4 28. Qxg4 Bxg4 29. Bxd8 $14) (27... Bxg4 28. Bxg5 Bxe2 29. Bxd8 $11) 28. Nxf6+ Kh8) 26. Nxe3 {[%emt 0:00:50]} Qxe3+ {[%emt 0:00:01]} 27. Kh1 {[%emt 0:00:00]} Qb3 {[%emt 0:00:06][%cal Od5c4] aiming for ...Bc4!} 28. Re1 {[%emt 0:00:27]} e3 {[%emt 0:02:33] ...Bxg2+ would now be deadly.} 29. Bd4 {[%emt 0:00:12][%csl LRa7,LRe3]} Bc4 $40 {[%emt 0:00:01][%mdl 128] White is in trouble.} 30. Qc5 {[%emt 0:00:17]} e2 {[%emt 0:00:19]} 31. Qxa7 {[%emt 0:00:02]} Qd1 {[%emt 0:01:54] White is weak on the light squares} 32. Bf2 {[%emt 0:00:06]} Rd8 {[%emt 0:00:01]} 33. Qe3 {[%emt 0:00:21]} Qc2 {[%emt 0:00:15]} (33... h6 $17) 34. h3 $11 {[%emt 0:00:17]} h6 {[%emt 0:00:13]} 35. Kh2 {[%emt 0:00:18]} (35. b5 $1 $11) 35... Rd1 $1 $17 {[%emt 0:00:01]} 36. Qe8+ {[%emt 0:00:07]} (36. Qf3 $17 {was called for.}) 36... Kh7 $19 {[%emt 0:00:01] Strongly threatening ...Qb1.} 37. Qe3 {[%emt 0:00:01]} Qb1 {[%emt 0:00:20]} 38. Qc3 {[%emt 0:00:08][%cal Oc3c4]} Qe4 {[%emt 0:00:02] And now ...Rd3 would win.} 39. Qf3 {[%emt 0:00:12]} Qe5+ {[%emt 0:00:16]} 40. Qg3 {[%emt 0:00:01] [#]} Qa1 {[%emt 0:00:06]} 41. h4 {[%emt 0:00:12]} (41. b5 $142) 41... Bd3 $4 {[%emt 0:00:11][%mdl 8192]} (41... f5 $19 {and all is fine. White must now prevent ...Bf7.} 42. h5 Bf7) 42. h5 $4 {[%emt 0:00:19][%mdl 8192]} (42. Qxd3+ $1 $18 {is the narrow road to win.} Rxd3 43. Rxa1) 42... Qa2 {[%emt 0:00:30][%cal Oa2b1]} 43. Qf3 {[%emt 0:00:16]} Qd2 {[%emt 0:00:52][%cal Of6f5]} (43... Qxa3 $6 44. Rxe2 (44. Rxd1 exd1=N 45. Qxd1 Qc3 $15) 44... Qa6 (44... Qxb4 45. Re8 $11) 45. Re5 $11) 44. Qg3 {[%emt 0:00:11]} Be4 {[%emt 0:00:07]} (44... Qc2 $17 45. Qh4 Qb3 46. Rxe2 Bxe2 47. Qe4+ Kh8 48. Qxe2 Ra1) 45. b5 {[%emt 0:00:13]} (45. Qg4 $1 $11 Bd3 46. Qf3) 45... Qd5 $17 {[%emt 0:00:21][%csl LRb5,LRh5]} 46. Qg4 {[%emt 0:00:09]} Qe5+ {[%emt 0:00:21]} 47. Kg1 {[%emt 0:00:11]} (47. Bg3 $2 Rxe1 48. Bxe5 Rh1+ 49. Kxh1 e1=Q+ (49... e1=B 50. Qxe4+ Kg8 51. b6 Bf2 52. b7 Ba7 53. Bd4 Kf8 54. Bxa7 Kf7 55. Qd5+ Kf8 56. b8=Q+ Ke7 57. Qbd8#) 50. Kh2 fxe5 $19) 47... Bc2 {[%emt 0:01:31]} (47... Bf5 $17 48. Qf3 Rxe1+ (48... Qxb5 49. Rxd1 exd1=N 50. Qxd1 $17) 49. Bxe1 Qxb5 (49... Qc5+ 50. Kh1 $17)) 48. b6 {[%emt 0:00:12] [#] Threatens to win with b7.} Qb5 {[%emt 0:00:15]} (48... Rxe1+ $1 $17 49. Bxe1 Qc5+ 50. Kh1 Qxb6 (50... Qxa3 $2 {too greedy.} 51. b7 $18)) 49. b7 {[%emt 0:00:10]} Rd2 $2 {[%emt 0:00:58][%mdl 8192]} (49... Rxe1+ $17 50. Bxe1 Qxb7 51. Qxe2 Be4) 50. Qb4 {[%emt 0:00:06] White is clearly winning.} Qxb4 {[%emt 0:00:26]} 51. axb4 {[%emt 0:00:01]} Rd8 {[%emt 0:00:06]} 52. Bg3 {[%emt 0:00:02] Quite a comeback for White.   Weighted Error Value: White=0.46/Black=0.44.  Loses game:     	White=2     	Black=1      Missed win:     	White=1     	Black=1      Mistake:       	White=7     	Black=9      Inaccurate:     	White=5     	---        OK:         	White=13    	Black=7      Best:        	White=4     	Black=4      Strong:       	---       	Black=2} 1-0

[Event "Tata Steel India Women Rapid 2024"]
[Site "Kolkata"]
[Date "2024.11.14"]
[Round "4.2"]
[White "Goryachkina, Aleksandra"]
[Black "Vantika Agrawal"]
[Result "1-0"]
[ECO "C07"]
[WhiteElo "2528"]
[BlackElo "2392"]
[Annotator "RC"]
[PlyCount "126"]
[EventDate "2024.11.06"]
[EventType "tourn"]
[EventCountry "IND"]
[SourceTitle "playchess.com"]
[Source "ChessBase"]
[SourceQuality "1"]
[TimeControl "1500+10"]

1. e4 {[%emt 0:00:03]} e6 {[%emt 0:00:28]} 2. d4 {[%emt 0:00:05]} d5 {[%emt 0:00:02]} 3. Nd2 {[%emt 0:00:04]} c5 {[%emt 0:00:13]} 4. exd5 {[%emt 0:00:05]} Qxd5 {[%emt 0:00:14]} 5. Ngf3 {[%emt 0:00:06]} cxd4 {[%emt 0:00:30]} 6. Bc4 {[%emt 0:00:04]} Qd6 {[%emt 0:00:10]} 7. O-O {[%emt 0:00:07]} Nf6 {[%emt 0:00:27]} 8. Nb3 {[%emt 0:00:11]} Nc6 {[%emt 0:00:24]} 9. Nbxd4 {[%emt 0:00:08]} Nxd4 {[%emt 0:00:17]} 10. Nxd4 {[%emt 0:00:02]} Be7 {[%emt 0:00:30]} 11. c3 {[%emt 0:00:13]} O-O {[%emt 0:00:11]} 12. Qf3 {[%emt 0:00:14]} e5 {[%emt 0:00:41]} 13. Nf5 {[%emt 0:01:15]} Bxf5 {[%emt 0:00:05]} 14. Qxf5 {[%emt 0:00:02]} Qc7 {[%emt 0:00:19]} 15. Bb3 {[%emt 0:01:30]} a5 {[%emt 0:00:23]} 16. Bg5 {[%emt 0:02:03]} g6 {[%emt 0:01:01]} 17. Qf3 {[%emt 0:00:45]} Kg7 {[%emt 0:00:19]} 18. Rfe1 {[%emt 0:01:57]} a4 {[%emt 0:02:51]} 19. Bc2 {[%emt 0:00:10]} Ra6 {[%emt 0:10:53]} 20. Rad1 {[%emt 0:02:03]} h6 {[%emt 0:03:19]} 21. Bh4 {[%emt 0:02:11]} Re8 {[%emt 0:02:22]} 22. Bd3 {[%emt 0:01:09]} Re6 {[%emt 0:01:43]} 23. Bb5 {[%emt 0:00:39]} e4 {[%emt 0:00:50]} 24. Qe2 {[%emt 0:00:54]} Ra8 {[%emt 0:00:28]} 25. Qc4 {[%emt 0:02:46]} Qxc4 {[%emt 0:00:27]} 26. Bxc4 {[%emt 0:00:01]} Rb6 {[%emt 0:00:07]} 27. Re2 {[%emt 0:02:08]} Rc8 {[%emt 0:00:11]} 28. b3 {[%emt 0:00:28]} axb3 {[%emt 0:00:13]} 29. axb3 {[%emt 0:00:02]} Rd6 {[%emt 0:00:09]} 30. Rde1 {[%emt 0:01:55]} b5 {[%emt 0:00:09]} 31. Bxb5 {[%emt 0:00:03]} Rxc3 {[%emt 0:00:07]} 32. Bc4 {[%emt 0:00:12]} Rd7 {[%emt 0:00:14]} 33. Bxf6+ {[%emt 0:02:22]} Bxf6 {[%emt 0:00:02]} 34. Rxe4 {[%emt 0:00:02]} Rc2 {[%emt 0:00:14]} 35. g3 {[%emt 0:00:09]} Rdd2 {[%emt 0:00:08]} 36. R1e2 {[%emt 0:01:28]} Rxe2 {[%emt 0:00:10]} 37. Bxe2 {[%emt 0:00:01]} Bc3 {[%emt 0:00:16]} 38. Bc4 {[%emt 0:00:31]} Bf6 {[%emt 0:00:10]} 39. Rf4 {[%emt 0:00:31]} Rd2 {[%emt 0:00:08]} 40. Kg2 {[%emt 0:00:22]} Rd4 {[%emt 0:00:11]} 41. Rf3 {[%emt 0:00:02]} h5 {[%emt 0:00:11]} 42. h3 {[%emt 0:00:35]} Re4 {[%emt 0:00:10]} 43. Kf1 {[%emt 0:00:32]} Rd4 {[%emt 0:00:10]} 44. Re3 {[%emt 0:00:02]} Bd8 {[%emt 0:00:11]} 45. Ke2 {[%emt 0:01:05]} Rd6 {[%emt 0:00:06]} 46. f4 {[%emt 0:00:09]} h4 {[%emt 0:00:12]} 47. g4 {[%emt 0:00:13]} Rf6 {[%emt 0:00:10]} 48. Re4 {[%emt 0:00:13]} Bc7 {[%emt 0:00:04]} 49. Kf3 {[%emt 0:00:01]} Bd6 {[%emt 0:00:18]} 50. g5 {[%emt 0:00:27]} Rf5 {[%emt 0:00:01]} 51. Kg4 {[%emt 0:00:01]} Kf8 {[%emt 0:00:18]} 52. Rd4 {[%emt 0:00:14]} Ke7 {[%emt 0:00:11]} 53. Bd3 {[%emt 0:00:03]} Rc5 {[%emt 0:00:09]} 54. Kxh4 {[%emt 0:00:53]} Rc3 {[%emt 0:00:01]} 55. Bc4 {[%emt 0:00:11]} Bc5 {[%emt 0:00:12]} 56. Rd3 {[%emt 0:00:10]} Rc2 {[%emt 0:00:17]} 57. Kg4 {[%emt 0:00:05]} Rg2+ {[%emt 0:00:06]} 58. Kf3 {[%emt 0:00:02]} Rf2+ {[%emt 0:00:12]} 59. Kg3 {[%emt 0:00:02]} Rb2 {[%emt 0:00:10]} 60. Rd5 {[%emt 0:00:16]} Bd6 {[%emt 0:00:13]} 61. h4 {[%emt 0:00:01]} Rc2 {[%emt 0:00:08]} 62. Rb5 {[%emt 0:00:08]} Rc3+ {[%emt 0:00:09]} 63. Kg4 {[%emt 0:00:08]} f5+ {[%emt 0:00:25]} 1-0

[Event "Tata Steel India Women Rapid 2024"]
[Site "Kolkata"]
[Date "2024.11.14"]
[Round "4.3"]
[White "Gunina, Valentina"]
[Black "Koneru, Humpy"]
[Result "1-0"]
[ECO "D37"]
[WhiteElo "2425"]
[BlackElo "2530"]
[Annotator "TA"]
[PlyCount "85"]
[EventDate "2024.11.06"]
[EventType "tourn"]
[EventCountry "IND"]
[SourceTitle "playchess.com"]
[Source "ChessBase"]
[SourceQuality "1"]
[TimeControl "1500+10"]

{[%evp 12,85,22,25,22,24,31,16,12,14,16,19,20,0,8,-103,-94,-104,-108,-143,-136,-126,-17,-81,-72,-59,-62,-79,-56,-55,-60,-116,-80,-106,-73,-127,-120,-138,-135,-119,-110,-217,-110,-114,-18,-15,-13,-13,-13,-20,0,0,0,0,0,-8,0,0,0,0,0,0,8,8,116,107,141,129,134,24,22,20,817,817,5973,5973]} 1. d4 {[%emt 0:00:03]} Nf6 {[%emt 0:00:03]} 2. c4 {[%emt 0:00:02]} e6 {[%emt 0:00:04]} 3. Nf3 {[%emt 0:00:02]} d5 {[%emt 0:00:05]} 4. Nc3 {[%emt 0:00:02]} Be7 {[%emt 0:00:07]} 5. Bf4 {[%emt 0:00:03]} O-O {[%emt 0:00:11]} 6. e3 {[%emt 0:00:01]} b6 {[%emt 0:00:07]} 7. Bd3 {[%emt 0:00:03]} Ba6 {[%emt 0:00:30]} 8. cxd5 {[%emt 0:00:04]} Nxd5 {[%emt 0:00:16]} 9. Nxd5 {[%emt 0:00:11]} Qxd5 {[%emt 0:00:07] The position is equal.} 10. O-O {[%emt 0:00:44]} Bxd3 {[%emt 0:01:08]} 11. Qxd3 {[%emt 0:00:03]} Rc8 {[%emt 0:00:15]} 12. a3 {[%emt 0:00:13]} Nd7 {[%emt 0:01:45][%cal Bb8d7,Bd7c5,Bc5d3,Bd3f4][%mdl 32]} 13. e4 {[%emt 0:01:04]} (13. Rac1 $11 {keeps the balance.}) 13... Nc5 $17 {[%emt 0:01:31]} 14. exd5 {[%emt 0:02:24]} Nxd3 {[%emt 0:00:03]} 15. Bg3 {[%emt 0:00:04]} exd5 {[%emt 0:00:49]} 16. Rab1 {[%emt 0:00:57]} g5 {[%emt 0:06:20]} (16... c5 $17 {Threatens to win with ...c4.} 17. dxc5 bxc5) 17. h4 {[%emt 0:02:20]} (17. Rfd1 $11 Nf4 18. Bxf4 gxf4 19. Rbc1) 17... h6 {[%emt 0:00:46]} 18. Rfd1 {[%emt 0:01:19]} Nf4 {[%emt 0:00:03]} 19. Re1 {[%emt 0:00:04]} Bf6 {[%emt 0:00:53]} 20. hxg5 {[%emt 0:01:37]} hxg5 {[%emt 0:00:06]} 21. Ne5 {[%emt 0:00:41]} (21. Bxf4 $15 gxf4 22. g3) 21... c5 {[%emt 0:04:59]} 22. dxc5 {[%emt 0:00:19]} bxc5 {[%emt 0:00:01]} ({Much worse is} 22... Rxc5 $6 23. Nd7 Rc6 24. Nxf6+ Rxf6 25. Re5 $11) 23. Rbd1 {[%emt 0:00:06]} (23. Nd7 $142 Bh8 24. Bxf4 gxf4 25. Rbd1) 23... Rd8 {[%emt 0:00:09]} 24. Bxf4 {[%emt 0:00:27]} gxf4 {[%emt 0:00:04]} 25. b3 {[%emt 0:01:35]} Rac8 {[%emt 0:01:06]} 26. Nd3 {[%emt 0:00:18]} (26. Rd3 $17 {was necessary.}) 26... Bc3 {[%emt 0:02:31]} (26... c4 $19 27. bxc4 dxc4 28. Nxf4 c3 29. Rxd8+ Rxd8) 27. Rf1 {[%emt 0:00:48]} c4 {[%emt 0:00:02]} ({Black should try} 27... d4 $17 {White must now prevent ...a5.} 28. a4 c4 29. bxc4 Rxc4) 28. Nxf4 $11 {[%emt 0:00:05]} d4 {[%emt 0:00:52]} 29. bxc4 {[%emt 0:00:06]} Rxc4 {[%emt 0:00:09]} 30. Rd3 {[%emt 0:00:12]} Ra4 {[%emt 0:01:34]} 31. Rb1 {[%emt 0:00:01]} Rxa3 {[%emt 0:01:18]} 32. Rb7 {[%emt 0:00:06]} Rd6 {[%emt 0:00:25]} 33. Rb8+ {[%emt 0:00:37]} Kh7 {[%emt 0:01:05]} 34. g4 {[%emt 0:00:51]} Ra5 {[%emt 0:00:17]} 35. Rh3+ {[%emt 0:00:22]} Rh6 {[%emt 0:00:09]} 36. Nh5 {[%emt 0:00:02]} d3 {[%emt 0:01:02]} 37. Rxd3 {[%emt 0:00:02]} Rc5 {[%emt 0:00:12]} (37... Rg6 $11 {remains equal.}) 38. Rb7 $16 {[%emt 0:00:18][%csl LRa7,LRf7] White is more active.} Rg6 {[%emt 0:00:09]} 39. Rxf7+ {[%emt 0:00:13]} Kg8 {[%emt 0:00:05]} 40. Rxa7 {[%emt 0:00:02]} ({White must play} 40. Rf4 $16) 40... Rxg4+ $11 {[%emt 0:00:05]} 41. Kf1 {[%emt 0:00:01][%cal Rd3d8]} Kh8 $2 {[%emt 0:00:12][%mdl 8192] [#]} (41... Bd4 $11) 42. Rh3 $1 $18 {[%emt 0:00:15] White threatens Nf6+ and mate.} Kg8 {[%emt 0:00:19] [#]} 43. Rxc3 $1 {[%emt 0:00:02][%mdl 512] Quite a comeback for White.   Weighted Error Value: White=0.20 (precise) /Black=0.32.  Loses game:     	---       	Black=1      Mistake:       	White=6     	Black=4      Inaccurate:     	White=2     	Black=4      OK:         	White=17    	Black=7      Best:        	White=3     	Black=4      Strong:       	White=1     	---} 1-0

[Event "Tata Steel India Women Rapid 2024"]
[Site "Kolkata"]
[Date "2024.11.14"]
[Round "4.4"]
[White "Kosteniuk, Alexandra"]
[Black "Lagno, Kateryna"]
[Result "1/2-1/2"]
[ECO "A07"]
[WhiteElo "2487"]
[BlackElo "2527"]
[Annotator "TA"]
[PlyCount "51"]
[EventDate "2024.11.06"]
[EventType "tourn"]
[EventCountry "IND"]
[SourceTitle "playchess.com"]
[Source "ChessBase"]
[SourceQuality "1"]
[TimeControl "1500+10"]

{[%evp 9,51,6,13,0,0,0,0,-8,2,9,16,0,0,0,0,0,0,0,0,0,0,0,-5,-23,-9,-10,-16,-4,-13,-10,0,0,9,0,19,10,13,0,0,0,16,0,0,0]} 1. Nf3 {[%emt 0:00:03]} d5 {[%emt 0:00:06]} 2. g3 {[%emt 0:00:01]} Nf6 {[%emt 0:00:03]} 3. Bg2 {[%emt 0:00:02]} e6 {[%emt 0:00:01]} 4. O-O {[%emt 0:00:07]} Be7 {[%emt 0:00:09]} 5. d3 {[%emt 0:00:19]} O-O {[%emt 0:00:03]} 6. Bf4 {[%emt 0:00:06]} Nh5 {[%emt 0:00:19]} 7. Bd2 {[%emt 0:00:56]} Nf6 {[%emt 0:00:02]} 8. a4 {[%emt 0:02:08]} a5 {[%emt 0:01:10]} 9. Nc3 {[%emt 0:01:33]} Nc6 {[%emt 0:01:09]} 10. e4 {[%emt 0:00:32]} dxe4 {[%emt 0:00:11]} 11. dxe4 {[%emt 0:00:46]} e5 {[%emt 0:00:05] Dodges Bf4} 12. h3 {[%emt 0:00:16]} Bb4 {[%emt 0:03:40]} 13. Nb5 {[%emt 0:00:46]} Bxd2 {[%emt 0:01:03]} 14. Qxd2 {[%emt 0:00:23]} Qe7 {[%emt 0:00:04]} 15. Qe3 {[%emt 0:01:19]} Be6 {[%emt 0:01:29]} 16. Rfd1 {[%emt 0:00:22]} Rad8 {[%emt 0:01:21]} 17. Ne1 {[%emt 0:06:27] The position is equal.} Nb4 {[%emt 0:02:28]} 18. Qc3 {[%emt 0:01:13][%csl LRc7,LRe5]} c6 {[%emt 0:00:27]} 19. Na3 {[%emt 0:00:02]} Qc7 {[%emt 0:04:53]} 20. Nc4 {[%emt 0:00:04]} Nd7 {[%emt 0:00:49]} 21. Ne3 {[%emt 0:00:25]} Nb6 {[%emt 0:00:40]} 22. b3 {[%emt 0:00:36]} f6 {[%emt 0:00:27]} 23. Qc5 {[%emt 0:01:47]} Nd7 {[%emt 0:00:59]} 24. Qc3 {[%emt 0:00:02]} Nb6 {[%emt 0:00:02] Dodges Nd5} 25. Qc5 {[%emt 0:00:02]} Nd7 {[%emt 0:00:02]} 26. Qc3 $1 {[%emt 0:00:02] Not much happened in this game.   Weighted Error Value: White=0.05 (flawless) /Black=0.03 (flawless) .  OK:         	White=9     	Black=13     Strong:       	White=1     	---} 1/2-1/2